Cogmind - Beta 16 @@@ ROGUE MODE // 2025.11.07 @ 19:30:51 Player: daxter767676 Result: Destroyed by GK-G8F(R) with Subdweller Machine Gun Performance ------------- Evolutions (0) 0 Regions Visited (2) 400 Robots Destroyed (34) 170 Value Destroyed (1023) 1023 Prototype IDs (0) 0 Alien Tech Used (0) 0 Bonus (0) 0 TOTAL SCORE: 1593 Bonus ------- None Cogmind --------- Core Integrity 0/250 Matter 257/300 Energy 250/250 System Corruption 0% Temperature Cool (0) Movement Treading (160) Location -10/Subcaves Parts ------- > --- POWER (1) -------- Ion Engine > --- PROPULSION (2) --- Light Treads Wheel > --- UTILITY (2) ------ Small Storage Unit ECM Suite > --- WEAPON (2) ------- Subdweller Machine Gun Battle Cannon > --- INVENTORY (8) ---- Machine Analyzer Subdweller Optics Targeting Computer Targeting Computer Targeting Computer Targeting Computer Scrap Shield Peak State ------------ > --- POWER ------------ Ion Engine > --- PROPULSION ------- Light Treads Wheel > --- UTILITY ---------- Small Storage Unit ECM Suite > --- WEAPON ----------- Improved Light Cannon Subdweller Shrapnel Launcher > --- INVENTORY -------- Heat Sink Machine Analyzer Subdweller Optics Targeting Computer Targeting Computer Targeting Computer Targeting Computer Light Armor Plating [Rating: 10] Favorites ----------- Power Ion Engine Engine Ion Engine Propulsion Light Treads Treads Light Treads Leg Aluminum Leg Wheel Wheel Utility Small Storage Unit Device ECM Suite Storage Small Storage Unit Weapon Autogun Energy Gun Small Laser Ballistic Gun Autogun Ballistic Cannon Improved Light Cannon Launcher Subdweller Shrapnel Launcher Build | -11 -10 -10 ------- Run | Yrd Mat Sub Slots Evolved . | . . . Power . | . . . Propulsion . | . . . Utility . | . . . Weapon . | . . . Parts Attached 19 | . 12 7 Power 3 | . 2 1 Engine 3 | . 2 1 Core . | . . . Reactor . | . . . Propulsion 6 | . 4 2 Treads 5 | . 4 1 Leg . | . . . Wheel 1 | . . 1 Hover . | . . . Flight . | . . . Utility 1 | . 1 . Device 1 | . 1 . Storage . | . . . Processor . | . . . Hackware . | . . . Protection . | . . . Artifact . | . . . Weapon 9 | . 5 4 Energy Gun . | . . . Energy Cannon . | . . . Ballistic Gun 5 | . 3 2 Ballistic Cannon 3 | . 2 1 Launcher 1 | . . 1 Special Weapon . | . . . Impact Weapon . | . . . Slashing Weapon . | . . . Piercing Weapon . | . . . Special Melee Weapon . | . . . Unidentified Prototypes . | . . . Parts Lost 6 | . 2 4 Power 1 | . . 1 Propulsion 4 | . 2 2 Utility . | . . . Weapon 1 | . . 1 Highest Loss Streak 4 | . 2 4 To Critical Strikes . | . . . Average Backups 7 | . 7 7 Power . | . 1 . Propulsion 1 | . 1 . Utility 5 | . 4 7 Weapon . | . . . Tool/Special . | . . . Unused Backups 19 | . 10 9 Power 2 | . 2 . Propulsion 4 | . 4 . Utility 11 | . 2 9 Weapon 2 | . 2 . Tool/Special . | . . . Average Slot Usage (%) 97 | . 98 95 Engine 13 | . 14 13 Treads 22 | . 24 16 Leg 2 | . 2 . Wheel 2 | . . 10 Device 13 | . 13 14 Storage 14 | . 14 14 Energy Gun 3 | . 5 . Ballistic Gun 15 | . 19 5 Ballistic Cannon 6 | . 2 16 Launcher 1 | . . 3 Peak Build Rating 10 | . 9 10 Average Rating 8 | . 8 9 On Entrance 7 | 6 6 9 Avg Prop Armor Cover (%) 9 | . . 9 Naked Turns . | . . . Heaviest Build 24 | 11 20 24 Greatest Support 40 | 20 40 40 Greatest Overweight (x) 3 | . 1 3 Average Overweight (x) . | . . 1 Largest Inventory Capacity 8 | . 8 8 Average Capacity 8 | . 8 8 Most Carried 8 | . 8 8 Average Carried 7 | . 7 7 Final Capacity 8 | 8 8 8 Final Carried 8 | 6 8 8 Class Distribution -------------------- 100% | Mutant Dominant Class ---------------- Mutant | -10/Materials Mutant | -10/Subcaves Resources | -11 -10 -10 ----------- Run | Yrd Mat Sub Matter Collected 984 | 164 622 198 Remotely . | . . . Salvage Created 1129 | . 963 166 Parts 73 | . 61 12 Haulers Intercepted . | . . . Recyclers Shooed . | . . . Parts Field Recycled . | . . . Retrieved Matter . | . . . Parts Self-Destructed 7 | . . 7 Prevented . | . . . Parts Restored . | . . . Kills | -11 -10 -10 ------- Run | Yrd Mat Sub Combat Hostiles Destroyed 32 | . 26 6 Guns 27 | . 26 1 Cannons 4 | . . 4 AOE 1 | . . 1 Classes Destroyed 6 | . 4 2 Worker 1 | . 1 . Watcher 1 | . 1 . Swarmer 6 | . 6 . Grunt 20 | . 20 . Artisan 1 | . . 1 Subdweller 6 | . . 6 Best Kill Streak 5 | . 5 2 Combat Bots Only 3 | . 3 2 Max Kills in Single Turn 2 | . 2 2 Gunslinging 1 | . 1 . Exploded 1 | . . 1 Melee . | . . . Uniques/NPCs Destroyed . | . . . Combat | -11 -10 -10 -------- Run | Yrd Mat Sub Hostile Shots Fired 158 | . 117 41 Missed 32 | . 22 10 Hits 126 | . 95 31 Projectile 126 | . 95 31 Critical Strikes 2 | . . 2 Damage Taken 1719 | . 1049 670 Core 274 | . 179 95 Absorbed by Shields . | . . . Regen/Repaired (Parts) 70 | . 70 . Core Remaining (%) 100 | 100 . . Volleys Fired 94 | . 69 25 Largest 2 | . 2 2 Hottest 80 | . 80 73 Shots Fired 177 | . 138 39 Gun 141 | . 138 3 Cannon 35 | . . 35 Launcher 1 | . . 1 Special . | . . . Kinetic 163 | . 124 39 Thermal 12 | . 12 . Explosive . | . . . Electromagnetic 2 | . 2 . Robot Hit Streak 21 | . 17 21 Robot Miss Streak 3 | . 3 2 Penetration Max . | . . . Secondary Targets 3 | . 3 . Max Gunslinging Chain 1 | . 1 . Shots Hit Robots 118 | . 89 29 Core Hits 56 | . 43 13 Critical Kills . | . . . Critical Parts Destroyed . | . . . Critical Strikes 1 | . . 1 Blast 1 | . . 1 Melee Attacks . | . . . Impact . | . . . Slashing . | . . . Piercing . | . . . Sneak Attacks . | . . . Combat Hostiles . | . . . Follow-up Attacks . | . . . Damage Inflicted 2041 | . 1343 698 Guns 1392 | . 1343 49 Cannons 556 | . . 556 Explosions 93 | . . 93 Melee . | . . . Ramming . | . . . Kinetic 1919 | . 1221 698 Thermal 86 | . 86 . Explosive . | . . . Electromagnetic 36 | . 36 . Impact . | . . . Slashing . | . . . Piercing . | . . . Highest Corruption . | . . . Average Corruption . | . . . Corruption Purged . | . . . Corruption Blocked . | . . . Overload Shots . | . . . Overflow Damage . | . . . Projectiles . | . . . Explosions . | . . . Melee . | . . . Knockbacks 14 | . . 14 Impact . | . . . Kinetic 14 | . . 14 Secondary . | . . . Self-Inflicted Damage 34 | . . 34 Shots 1 | . . 1 Rammed . | . . . Targets Rammed . | . . . Kicked . | . . . Crushed . | . . . Highest Temperature 250 | . 52 250 Average Temperature 23 | . 14 160 Received Heat Transfer 976 | . 501 475 Effects 1 | . . 1 Energy Bleed 1 | . . 1 Siege Activations . | . . . Martial Activations . | . . . Shielding Activations . | . . . Robots Disrupted . | . . . Combat Hostiles . | . . . Robots Corrupted . | . . . Combat Hostiles . | . . . Parts Fried . | . . . Impact Corruptions . | . . . Robots Melted . | . . . Combat Hostiles . | . . . Parts Melted . | . . . Heat Transferred 200 | . 200 . Parts Sabotaged . | . . . Parts Stolen . | . . . Parts Stripped . | . . . Power Chain Reactions . | . . . Alert | -11 -10 -10 ------- Run | Yrd Mat Sub Maximum Alert Level 1 | . 1 . Low Security (%) 90 | . 90 . Level 1 9 | . 9 . Level 2 . | . . . Level 3 . | . . . Level 4 . | . . . Level 5 . | . . . High Security . | . . . Max Security . | . . . Peak Influence 229 | . 229 . Initial . | . . . Average 70 | . 70 . Influence Increases 684 | . 684 . Destroy 0b10 Robot/C 520 | . 520 . Destroy 0b10 Robot/NC 10 | . 10 . Destroy Leader 112 | . 112 . Successful Hack 8 | . 8 . Select Force Hacks 30 | . 30 . Destroy Structure 4 | . 4 . Influence Decreases 684 | . 503 181 Entered New Map 88 | . . 88 Time Decay 408 | . 355 53 Lost Part 60 | . 20 40 Purge Threat 128 | . 128 . Squads Dispatched 9 | . 9 . Investigation 5 | . 5 . Extermination . | . . . Reinforcement 4 | . 4 . Assault . | . . . Garrison . | . . . Intercept . | . . . Searches Triggered . | . . . Construction Impeded . | . . . Haulers Reinforced . | . . . Active Scanning Responses . | . . . Cargo Convoy Interrupts . | . . . Stealth | -11 -10 -10 --------- Run | Yrd Mat Sub Distress Signals 1 | . 1 . Communications Jammed . | . . . Distress Signals . | . . . Times Spotted 57 | . 46 11 Peak Tracking Total 6 | . 6 2 Tactical Retreats 5 | . 4 1 ECM-based Alert Blocks 8 | . 8 . Traps | -11 -10 -10 ------- Run | Yrd Mat Sub Traps Triggered 3 | . 3 . Indirectly . | . . . Trap Hack Attempts . | . . . Triggered . | . . . Disarmed . | . . . Reprogrammed . | . . . Reused . | . . . Traps Extracted . | . . . Installed . | . . . Triggered . | . . . Machines | -11 -10 -10 ---------- Run | Yrd Mat Sub Machines Disabled . | . . . Max in Single Turn . | . . . Machines Repaired . | . . . Machines Dismantled . | . . . Machines Sabotaged . | . . . Overloaded Fab Kills . | . . . Hacking | -11 -10 -10 --------- Run | Yrd Mat Sub Machines Accessed 6 | . 6 . Terminals 4 | . 4 . Fabricators . | . . . Repair Stations 1 | . 1 . Recycling Units 1 | . 1 . Scanalyzers . | . . . Garrison Access . | . . . Total Hacks 17 | . 17 . Successful 10 | . 10 . Failed 7 | . 7 . Catastrophic . | . . . Database Lockouts . | . . . Manual 8 | . 8 . Terminals 12 | . 12 . Fabricators . | . . . Repair Stations 4 | . 4 . Recycling Units 1 | . 1 . Scanalyzers . | . . . Garrison Access . | . . . Terminal Hacks 2 | . 2 . Unreport Threat 1 | . 1 . Locate Traps 1 | . 1 . Fabricator Hacks . | . . . Repair Station Hacks 3 | . 3 . Scan Component 2 | . 2 . Repair 1 | . 1 . Recycling Unit Hacks . | . . . Scanalyzer . | . . . Garrison Access Hacks . | . . . Unauthorized Hacks 5 | . 5 . Terminals 4 | . 4 . Assimilate 1 | . 1 . Skim 3 | . 3 . Fabricators . | . . . Repair Stations . | . . . Recycling Units 1 | . 1 . Tunnel 1 | . 1 . Scanalyzers . | . . . Garrison Access . | . . . Data Cores Recovered . | . . . Used . | . . . Hacking Detections 4 | . 4 . Full Trace Events . | . . . Feedback Events . | . . . Feedback Blocked . | . . . Robot Schematics Acquired . | . . . Robots Built . | . . . Authchips . | . . . Time . | . . . Total Robot Build Rating . | . . . Part Schematics Acquired . | . . . Parts Built . | . . . Authchips . | . . . Time . | . . . Total Part Build Rating . | . . . Part Studies Acquired . | . . . Parts Repaired 1 | . 1 . Time 32 | . 32 . Parts Recycled . | . . . Recycled Matter . | . . . Retrieved Matter . | . . . Retrieved Components . | . . . Parts Scanalyzed . | . . . Part Schematics Acquired . | . . . Parts Damaged . | . . . Bothacking | -11 -10 -10 ------------ Run | Yrd Mat Sub Used RIF Installer . | . . . Robots Hacked . | . . . Non-combat . | . . . Combat . | . . . Robot Hacks Applied . | . . . Relay Couplers Released . | . . . Fabnet Peak Effective % . | . . . Robots Rewired . | . . . Allies Hacked . | . . . Hacks Repelled . | . . . Allies | -11 -10 -10 -------- Run | Yrd Mat Sub Total Allies . | . . . Largest Group . | . . . Highest-Rated Group . | . . . Highest-Rated Ally . | . . . Total Orders . | . . . Ally Attacks . | . . . Total Damage . | . . . Kills . | . . . Allies Corrupted . | . . . Allies Melted . | . . . Intel | -11 -10 -10 ------- Run | Yrd Mat Sub Active Infowar (turns) 1953 | . 1419 534 ECM 1953 | . 1419 534 Robot Analysis Total . | . . . Derelict Logs Recovered . | . . . Drone Launches . | . . . Drone Recoveries . | . . . Exploration | -11 -10 -10 ------------- Run | Yrd Mat Sub Turns Passed 2029 | . 1495 534 Spaces Moved 952 | 1 667 284 Core 2 | . . 2 Treads 683 | . 574 109 Legs 94 | 1 93 . Wheels 173 | . . 173 Hover . | . . . Flight . | . . . Fastest Speed 95 | 120 120 95 Average Speed 146 | 120 154 126 Slowest Speed 200 | 120 190 200 Overloaded Moves . | . . . Propulsion Burnouts . | . . . Robots Hopped . | . . . Potential Cave-ins . | . . . Cave-ins Triggered . | . . . Exploration Rate (%) 40 | 2 94 24 Regions Visited 2 Branch Regions 1 Pre-discovered Areas 2 | . 1 1 Known Exits Taken . | . . . Unknown Exits Taken 2 | 1 1 . Scrap Searched 3 | . . 3 Spaces Dug . | . . . Terrain Destroyed 18 | . . 18 Melee . | . . . Projectile 1 | . . 1 AOE 17 | . . 17 Terrain Rammed . | . . . Walls Destroyed . | . . . Machines Disabled . | . . . Actions | -11 -10 -10 --------- Run | Yrd Mat Sub Total 1440 | . 1021 419 Wait 342 | . 247 95 Move 950 | . 666 284 Hop . | . . . Pick Up 14 | . 11 3 Fast Attach 10 | . 7 3 Attach 5 | . 3 2 Detach . | . . . Swap 5 | . 3 2 Drop 20 | . 15 5 Fire 94 | . 69 25 Melee . | . . . Ram . | . . . Kick . | . . . Crush . | . . . Escape Stasis . | . . . Rewire . | . . . Trap . | . . . Miscellaneous . | . . . Route ------- -11/Scrapyard -10/Materials (discovered 5 exits: [*Mat x3] / [*Min] / [*Sub]) -10/Subcaves History --------- Turn | Location | Event 1 | -11/Scrapyard | Discovered new exit (range 0) 1 | -11/Scrapyard | Entered Materials 312 | -10/Materials | Build established: Mutant 471 | -10/Materials | Discovered new exit (range 10) 549 | -10/Materials | Discovered new exit (range 10) 659 | -10/Materials | Discovered new exit (range 5) 845 | -10/Materials | Repaired Autogun 997 | -10/Materials | Discovered new exit (range 7) 1194 | -10/Materials | Core integrity fell below 50% 1483 | -10/Materials | Discovered new exit (range 9) 1496 | -10/Materials | Entered Subcaves 1497 | -10/Subcaves | Approached by a straggling Scientist 1523 | -10/Subcaves | Learned location of Zion (-7) 1523 | -10/Subcaves | Met a Zionite searching for "candidates" 1594 | -10/Subcaves | Core integrity fell below 20% 1628 | -10/Subcaves | Lost 4 parts (1p2n1w) 2030 | -10/Subcaves | Destroyed by GK-G8F(R) with Subdweller Machine Gun Last Messages --------------- 01824_ Found Battle Cannon. 01824_ Found 36 Matter. 01826_ Dropped Imp. Light Cannon. 01829_ Searching scrap... 01829_ Found Scrap Shield. 01829_ Found Sub. Laser. 01829_ Found 70 Matter. 01830_ Acquired 10 matter. 01831_ Dropped Heat Sink. 01832_ Dropped Lgt. Armor Plating. 01832_ Acquired Scrap Shield. 01836_ Searching scrap... 01836_ Found Battle Rifle. 01836_ Found Sub. Monowheel. 01836_ Found 37 Matter. 01839_ Dropped Sub. Shrapnel Launcher. 01839_ Acquired Battle Rifle. 01923_ HP-UCO(R) knocked back. 01926_ HP-UCO(R) destroyed. 01932_ Dropped Battle Rifle. Map ----- +----------------------------------------------------+ | ####### #????????????????????????????????????? | | ##?????# #????????????????????????????????????? | | ###??## #????????????????????????????????????? | | #### #????????????????????????????????????? | | ## #????????????????????????????????????? | | #????????????????????????????????????? | | % * #????????????????????????????????????? | | [%! #????????????????????????????????????? | | # ## ## #????????????????????????????????????? | | ### ## ##???????????????????????????????????? | | #?# ## ##?????# ???????????????????????????? | | #### #???? ???????????????????????????? | | ### ##??? ???????????????????????????? | | ######???? ???????????????????????????? | | #####????# #??????????????????????????? | | # ##???# ??????????????????????????? | | #### ## ??####????????????????????? | | ???## ## ?# #####????????????????? | | ????# ##?# ## #? ????????????????? | | #?### ##???# ####?## #? ??????????????????? | | ### ##????### ??# ### #???????????????????? | | #?????## #???# ## #???????????????????? | | ##?###?# ##### #????????????????????? | | ## #### ### # #??????????????????????? | | ## ## ##???????? ##??????????? | | ## @;### #??????????? | | ### #########R R #?????????? | | ?### ## ##???????# #????????? | | ##???##### ##????????## #### #?????????? | | ?????????#######???????????#####???????#?????????? | | ?????????????????????????????????????????????????? | | ?????????????????????????????????????????????????? | | ?????????????????????????????????????????????????? | | ?????????????????????????????????????????????????? | | ?????????????????????????????????????????????????? | | ?????????????????????????????????????????????????? | | ?????????????????????????????????????????????????? | | ?????????????????????????????????????????????????? | | ?????????????????????????????????????????????????? | | ?????????????????????????????????????????????????? | | ?????????????????????????????????????????????????? | | ?????????????????????????????????????????????????? | | ?????????????????????????????????????????????????? | | ?????????????????????????????????????????????????? | | | | | | | | | | | | | +----------------------------------------------------+ Best States ------------- Heat Dissipation 25 Energy Generation 10 Energy Capacity 250 Matter Stores 300 Matter Capacity 300 Sight Range 16 Terrain Scan Density 10 ECM Strength 1 Evasion (%) 55 Recoil Reduction 2 Item Schematics ----------------- None Robot Schematics ------------------ None Fabricated ------------ Nothing Repaired ---------- Autogun | 39% | -10/Materials Studied --------- None Alien Tech Used ----------------- None Achievements -------------- None Challenges ------------ None Game ------ Seed GrenadeGunTube Manual? 0 Play Time 00:20:01 Cumulative 160.8 hours Start 2025.11.07 @ 19:12:09 End 2025.11.07 @ 19:30:51 Sessions 1 Manual Loads 0 Difficulty Rogue Special Mode None Game No. 172 Rogue 170 Adventurer 2 Explorer 0 Win Type - Total 0 Types 0/0/0/0/0/0/0/0/0/0 Lore% 65 Gallery% 57 Achievement% 32 Wizard Run 0 Options --------- Layout 2 ASCII 0 Keyboard 1 Movement Vi Keybinds 0 Fullscreen 0 Font 42/SmallcapsGlow Map View 29x24 Zoom Use 88% Tactical HUD 1 Map Filters NONE Filters NONE Steam 1 RUN: 7e59d3fd-5158-43a4-b1b5-9e0f63151e14